[Event "WSTCC-50 2024"]
[Site "Krakow"]
[Date "2024.07.02"]
[Round "1.11"]
[White "Arnason, Jon L"]
[Black "Csom, Etelka"]
[Result "1-0"]
[ECO "B01"]
[WhiteElo "2421"]
[BlackElo "1996"]
[Annotator "TA"]
[PlyCount "53"]
[EventDate "2024.07.01"]
[EventType "team-tourn"]
[EventCountry "POL"]
[SourceTitle "playchess.com"]
[Source "ChessBase"]
[SourceQuality "1"]
[TimeControl "40/5400+30:1800+30"]

{[%evp 9,53,45,63,40,139,52,52,36,91,67,64,47,119,36,42,-24,37,0,64,63,65,64,61,60,56,59,65,61,71,73,231,225,233,145,235,227,231,229,241,233,240,214,693,690,698,691]} 1. e4 {[%emt 0:00:07]} d5 {[%emt 0:00:15]} 2. exd5 {[%emt 0:00:12]} Nf6 {[%emt 0:00:12]} 3. d4 {[%emt 0:01:32]} Bg4 {[%emt 0:01:03]} 4. Nf3 {[%emt 0:08:11]} Qxd5 {[%emt 0:00:47]} 5. Be2 {[%emt 0:01:05]} Nc6 {[%emt 0:04:36]} 6. h3 {[%emt 0:08:06]} Qh5 {[%emt 0:10:06]} (6... Bxf3 $14 7. Bxf3 Qd7) 7. Bf4 {[%emt 0:06:53]} (7. hxg4 $2 Qxh1+ 8. Bf1 Nxg4 $19) (7. O-O $16 Bd7 8. Re1) 7... O-O-O $14 {[%emt 0:07:52]} 8. c3 {[%emt 0:01:01] White is slightly better.} Qf5 {[%emt 0:15:02]} (8... e5 $14 9. Bxe5 (9. hxg4 $2 {too greedy.} Qxh1+ 10. Kd2 Qxd1+ 11. Kxd1 exf4 $19) (9. Nxe5 Bxe2 10. Qxe2 Re8 $14) 9... Nxe5 10. Nxe5 Bxe2 11. Qxe2 Bd6) 9. Bh2 {[%emt 0:09:17]} Bxf3 {[%emt 0:02:54]} 10. Bxf3 {[%emt 0:00:05]} e6 {[%emt 0:00:34]} (10... e5 $14) 11. g4 {[%emt 0:10:46]} (11. O-O $16) 11... Qb5 {[%emt 0:05:49]} 12. Nd2 {[%emt 0:13:12]} (12. Qb3 $14 a6 13. Qxb5 axb5 14. a4) 12... Bd6 {[%emt 0:01:25]} (12... Qxb2 $11 13. Bxc6 bxc6) 13. Bxd6 {[%emt 0:10:25]} Rxd6 {[%emt 0:00:29]} (13... cxd6 $11 14. Qb3 Qg5) 14. Qb3 {[%emt 0:02:18]} Qxb3 {[%emt 0:04:20]} 15. axb3 {[%emt 0:00:07][%cal Ba2b3,Bb3b4][%mdl 32]} Nd5 $1 {[%emt 0:04:57]} 16. b4 $36 {[%emt 0:00:26][%mdl 2048] Strongly threatening b5. Black is under pressure.} a6 {[%emt 0:05:20][%cal Ba7a6,Ba6b5][%mdl 32]} 17. Ne4 {[%emt 0:01:20]} Rdd8 {[%emt 0:00:41]} 18. Nc5 {[%emt 0:03:06]} Rhe8 {[%emt 0:01:08]} 19. O-O {[%emt 0:01:46]} e5 $2 {[%emt 0:03:52] [#] Loses the game.} (19... Rd6 $16) 20. b5 $1 $18 {[%emt 0:03:49][%mdl 512]} axb5 {[%emt 0:04:56]} 21. Ra8+ {[%emt 0:00:16]} Nb8 {[%emt 0:00:09] [#]} 22. g5 $1 {[%emt 0:00:21] Hoping for Bg4+.} c6 {[%emt 0:01:54]} 23. Bg4+ {[%emt 0:01:29]} Kc7 {[%emt 0:00:21]} 24. Ra7 {[%emt 0:00:44][%cal Ba8a7,Ba7b7,Bb7f7][%mdl 32]} exd4 {[%emt 0:02:11]} 25. cxd4 {[%emt 0:00:47]} ({Resist} 25. Rxb7+ Kd6 $18) 25... Nf4 $2 {[%emt 0:04:04]} (25... Re7) 26. Rxb7+ {[%emt 0:00:48]} (26. Nxb7 Rxd4 27. Na5+ Kb6 $15) 26... Kd6 {[%emt 0:00:14]} 27. Rxf7 {[%emt 0:00:15] Weighted Error Value: White=0.19 (very precise) /Black=0.57.  Mistake:       	White=3     	Black=7      Inaccurate:     	White=1     	Black=1      OK:         	White=8     	Black=7      Best:        	White=3     	Black=3      Strong:       	---       	Black=1} 1-0

[Event "WSTCC-50 2024"]
[Site "Krakow"]
[Date "2024.07.02"]
[Round "1.11"]
[White "Clark, Gary M"]
[Black "Mai, Iris"]
[Result "1-0"]
[ECO "E15"]
[WhiteElo "2299"]
[BlackElo "1972"]
[Annotator "RC"]
[PlyCount "61"]
[EventDate "2024.07.01"]
[EventType "team-tourn"]
[EventCountry "POL"]
[SourceTitle "playchess.com"]
[Source "ChessBase"]
[SourceQuality "1"]
[TimeControl "40/5400+30:1800+30"]

1. d4 {[%emt 0:00:13]} Nf6 {[%emt 0:00:16]} 2. c4 {[%emt 0:00:20]} e6 {[%emt 0:00:52]} 3. Nf3 {[%emt 0:00:30]} b6 {[%emt 0:01:20]} 4. g3 {[%emt 0:01:10]} Bb7 {[%emt 0:02:27]} 5. Bg2 {[%emt 0:00:36]} d5 {[%emt 0:03:17]} 6. O-O {[%emt 0:15:33]} Nbd7 {[%emt 0:07:13]} 7. b3 {[%emt 0:07:43]} Be7 {[%emt 0:05:07]} 8. Bb2 {[%emt 0:02:22]} O-O {[%emt 0:01:49]} 9. Nc3 {[%emt 0:00:12]} c6 {[%emt 0:02:34]} 10. Qd3 {[%emt 0:04:42]} Re8 {[%emt 0:11:55]} 11. e4 {[%emt 0:04:39]} Nf8 {[%emt 0:12:23]} 12. Rad1 {[%emt 0:07:15]} Rc8 {[%emt 0:04:27]} 13. Ne5 {[%emt 0:03:38]} Rc7 {[%emt 0:03:26]} 14. Rfe1 {[%emt 0:03:35]} Bb4 {[%emt 0:05:03]} 15. f3 {[%emt 0:09:21]} dxe4 {[%emt 0:06:09]} 16. fxe4 {[%emt 0:01:54]} N6d7 {[%emt 0:06:37]} 17. Nf3 {[%emt 0:01:35]} Qa8 {[%emt 0:11:51]} 18. a3 {[%emt 0:01:17]} Be7 {[%emt 0:00:50]} 19. e5 {[%emt 0:05:40]} Ng6 {[%emt 0:04:20]} 20. h4 {[%emt 0:02:51]} Bf8 {[%emt 0:00:41]} 21. h5 {[%emt 0:01:28]} Ne7 {[%emt 0:00:08]} 22. Ne4 {[%emt 0:01:42]} Nc8 {[%emt 0:00:49]} 23. Rf1 {[%emt 0:00:38]} Be7 {[%emt 0:04:43]} 24. b4 {[%emt 0:06:24]} c5 {[%emt 0:01:15]} 25. Neg5 {[%emt 0:01:28]} Bxg5 {[%emt 0:00:13]} 26. Nxg5 {[%emt 0:00:02]} Nf8 {[%emt 0:00:08]} 27. d5 {[%emt 0:00:54]} exd5 {[%emt 0:02:12]} 28. cxd5 {[%emt 0:00:08]} c4 {[%emt 0:00:03]} 29. Qc3 {[%emt 0:00:12]} h6 {[%emt 0:01:45]} 30. Rxf7 {[%emt 0:00:16]} Ree7 {[%emt 0:00:59]} 31. e6 {[%emt 0:01:57]} 1-0

[Event "WSTCC-50 2024"]
[Site "Krakow"]
[Date "2024.07.02"]
[Round "1.11"]
[White "Harstad, Christian"]
[Black "Morgan, Jamie"]
[Result "1-0"]
[ECO "B27"]
[WhiteElo "1917"]
[BlackElo "1843"]
[Annotator "NA RC"]
[PlyCount "29"]
[EventDate "2024.07.01"]
[EventType "team-tourn"]
[EventCountry "POL"]
[SourceTitle "playchess.com"]
[Source "ChessBase"]
[SourceQuality "1"]
[TimeControl "40/5400+30:1800+30"]

1. e4 {[%emt 0:00:03]} c5 {[%emt 0:00:10]} 2. Nf3 {[%emt 0:00:12]} g6 {[%emt 0:00:09]} 3. d4 {[%emt 0:01:19]} cxd4 {[%emt 0:00:14]} 4. Qxd4 {[%emt 0:04:02]} Nf6 {[%emt 0:00:35]} 5. Bc4 {[%emt 0:15:37]} Bg7 {[%emt 0:11:30]} 6. e5 {[%emt 0:09:03]} Nc6 {[%emt 0:03:26]} 7. Qf4 {[%emt 0:03:18]} d5 {[%emt 0:08:07]} 8. exf6 {[%emt 0:01:44]} Bxf6 {[%emt 0:01:55]} 9. Bb3 {[%emt 0:01:51]} e5 {[%emt 0:07:52]} 10. Qh6 {[%emt 0:04:28]} e4 {[%emt 0:06:34]} 11. Ng5 {[%emt 0:07:10]} Nd4 {[%emt 0:01:24]} 12. Nxh7 {[%emt 0:22:57]} Be7 {[%emt 0:08:28]} 13. Qg7 {[%emt 0:01:15]} Nxc2+ {[%emt 0:22:25]} 14. Bxc2 {[%emt 0:02:25]} Rxh7 {[%emt 0:05:35]} 15. Qxh7 {[%emt 0:01:07]} 1-0

[Event "WSTCC-50 2024"]
[Site "Krakow"]
[Date "2024.07.02"]
[Round "1.12"]
[White "Jahn, Constanze"]
[Black "Duncan, Chris R"]
[Result "1/2-1/2"]
[ECO "B50"]
[WhiteElo "2051"]
[BlackElo "2156"]
[Annotator "RC"]
[PlyCount "75"]
[EventDate "2024.07.01"]
[EventType "team-tourn"]
[EventCountry "POL"]
[SourceTitle "playchess.com"]
[Source "ChessBase"]
[SourceQuality "1"]
[TimeControl "40/5400+30:1800+30"]

1. e4 {[%emt 0:00:06]} c5 {[%emt 0:00:05]} 2. Nf3 {[%emt 0:00:04]} d6 {[%emt 0:00:17]} 3. Bc4 {[%emt 0:00:12]} Nc6 {[%emt 0:01:00]} 4. O-O {[%emt 0:00:33]} Nf6 {[%emt 0:00:27]} 5. Nc3 {[%emt 0:00:33]} g6 {[%emt 0:00:34]} 6. h3 {[%emt 0:01:05]} Bg7 {[%emt 0:00:05]} 7. d4 {[%emt 0:04:56]} cxd4 {[%emt 0:00:58]} 8. Nxd4 {[%emt 0:00:07]} O-O {[%emt 0:04:04]} 9. Be3 {[%emt 0:08:51]} Nxe4 {[%emt 0:08:39]} 10. Nxe4 {[%emt 0:00:21]} d5 {[%emt 0:00:29]} 11. Nxc6 {[%emt 0:08:41]} bxc6 {[%emt 0:00:10]} 12. Bd3 {[%emt 0:00:09]} dxe4 {[%emt 0:00:14]} 13. Bxe4 {[%emt 0:00:04]} Qc7 {[%emt 0:02:46]} 14. Qf3 {[%emt 0:04:59]} Rb8 {[%emt 0:11:16]} 15. Bc5 {[%emt 0:17:54]} Rxb2 {[%emt 0:11:34]} 16. Qa3 {[%emt 0:01:15]} Be6 {[%emt 0:15:42]} 17. Bxe7 {[%emt 0:07:23]} Re8 {[%emt 0:02:54]} 18. Bd6 {[%emt 0:01:31]} Qb7 {[%emt 0:01:53]} 19. Rfe1 {[%emt 0:04:59]} Rd8 {[%emt 0:06:46]} 20. Bc5 {[%emt 0:06:29]} Rb5 {[%emt 0:09:52]} 21. Rad1 {[%emt 0:03:18]} Rxd1 {[%emt 0:01:35]} 22. Rxd1 {[%emt 0:00:02]} Rb1 {[%emt 0:00:25]} 23. Qd3 {[%emt 0:02:55]} h5 {[%emt 0:01:47]} 24. a3 {[%emt 0:04:31]} Bd5 {[%emt 0:07:39]} 25. Bxd5 {[%emt 0:08:25]} cxd5 {[%emt 0:00:23]} 26. Rxb1 {[%emt 0:00:13]} Qxb1+ {[%emt 0:00:05]} 27. Kh2 {[%emt 0:00:08]} Qb7 {[%emt 0:05:36]} 28. Qe3 {[%emt 0:04:05]} a6 {[%emt 0:00:08]} 29. g3 {[%emt 0:02:10]} Qc6 {[%emt 0:00:46]} 30. c3 {[%emt 0:02:34]} Qe6 {[%emt 0:00:48]} 31. Qd3 {[%emt 0:01:53]} h4 {[%emt 0:00:33]} 32. gxh4 {[%emt 0:00:43]} Bf6 {[%emt 0:02:22]} 33. h5 {[%emt 0:01:12]} gxh5 {[%emt 0:00:16]} 34. Qg3+ {[%emt 0:00:30]} Kh7 {[%emt 0:00:10]} 35. Qd3+ {[%emt 0:00:42]} Kg8 {[%emt 0:01:54]} 36. Qg3+ {[%emt 0:00:11]} Kh7 {[%emt 0:00:48]} 37. Qd3+ {[%emt 0:00:06]} Kg8 {[%emt 0:01:08]} 38. Qg3+ {[%emt 0:00:06]} 1/2-1/2

[Event "WSTCC-50 2024"]
[Site "Krakow"]
[Date "2024.07.02"]
[Round "1.12"]
[White "Kozma, Edit"]
[Black "Thorhallsson, Throstur"]
[Result "0-1"]
[ECO "B59"]
[WhiteElo "1859"]
[BlackElo "2385"]
[Annotator "TA"]
[PlyCount "52"]
[EventDate "2024.07.01"]
[EventType "team-tourn"]
[EventCountry "POL"]
[SourceTitle "playchess.com"]
[Source "ChessBase"]
[SourceQuality "1"]
[TimeControl "40/5400+30:1800+30"]

{[%evp 26,52,-50,-39,-54,-64,-68,-57,-45,-81,-60,-102,-99,-106,-97,-100,-94,-139,-131,-227,-196,-447,-422,-683,-679,-704,-695,-1199,-1183]} 1. e4 {[%emt 0:00:11]} c5 {[%emt 0:00:12]} 2. Nf3 {[%emt 0:00:19]} d6 {[%emt 0:00:26]} 3. d4 {[%emt 0:00:27]} cxd4 {[%emt 0:00:06]} 4. Nxd4 {[%emt 0:00:09]} Nf6 {[%emt 0:00:13]} 5. Nc3 {[%emt 0:00:10]} Nc6 {[%emt 0:00:23]} 6. Be2 {[%emt 0:01:27]} e5 {[%emt 0:01:25]} 7. Nb3 {[%emt 0:00:12]} Be7 {[%emt 0:00:32]} 8. O-O {[%emt 0:00:34]} O-O {[%emt 0:00:17]} 9. Be3 {[%emt 0:01:15]} a5 {[%emt 0:02:12]} 10. a4 {[%emt 0:04:00]} Nb4 {[%emt 0:01:03]} 11. f4 {[%emt 0:06:30]} Be6 {[%emt 0:05:48]} 12. Bf3 {[%emt 0:03:11]} exf4 {[%emt 0:07:31]} 13. Bxf4 {[%emt 0:00:39]} Nxc2 {[%emt 0:03:36]} 14. Qxc2 {[%emt 0:01:02]} Qb6+ {[%emt 0:00:05]} 15. Kh1 {[%emt 0:03:15] [#] Nb5 is the strong threat.} Bxb3 {[%emt 0:01:34]} 16. Qd2 {[%emt 0:01:07]} Rac8 {[%emt 0:15:14] Black is slightly better.} 17. Be3 {[%emt 0:03:39]} Qb4 {[%emt 0:04:22]} 18. Be2 {[%emt 0:05:07]} Nxe4 {[%emt 0:17:26]} 19. Nxe4 {[%emt 0:00:12]} Qxe4 {[%emt 0:00:03]} 20. Bf3 {[%emt 0:01:53]} Qe6 {[%emt 0:04:51]} 21. Bxb7 {[%emt 0:01:51]} Rc2 {[%emt 0:03:49]} 22. Qe1 {[%emt 0:06:46]} (22. Qd3 $17 {was worth a try.}) 22... d5 {[%emt 0:05:03]} ({But not} 22... Rxb2 23. Bd4 Ra2 (23... Qxe1 24. Raxe1 Rd2 25. Bc3 $17) 24. Rxa2 Bxa2 25. Qa1 $17) 23. Rf3 $2 {[%emt 0:05:55]} (23. Qg3) 23... Rb8 $19 {[%emt 0:05:49] Black is clearly winning.} ({Less strong is} 23... Rxb2 24. Bd4 Qxe1+ 25. Rxe1 $15) 24. Qg3 {[%emt 0:03:41]} (24. Qxa5 $142 Rxb7 25. Qa8+ Qc8 26. Qxc8+ Rxc8 27. a5) 24... Rxb7 {[%emt 0:05:04]} 25. Bd4 {[%emt 0:00:45] [#]} Qg6 {[%emt 0:01:34]} 26. Rxb3 {[%emt 0:01:31]} (26. Qh3 Bd6) 26... Rxb3 {White did not feel at home in the position after the opening.   Weighted Error Value: White=1.19/Black=0.07 (flawless) .  Mistake:       	White=3     	---        Inaccurate:     	White=3     	---        OK:         	White=2     	Black=4      Best:        	---       	Black=1} 0-1

[Event "WSTCC-50 2024"]
[Site "Krakow"]
[Date "2024.07.02"]
[Round "1.12"]
[White "Goman, Colin"]
[Black "Johnsen, Sylvia"]
[Result "0-1"]
[ECO "D05"]
[WhiteElo "1759"]
[BlackElo "1878"]
[Annotator "NA RC"]
[PlyCount "120"]
[EventDate "2024.07.01"]
[EventType "team-tourn"]
[EventCountry "POL"]
[SourceTitle "playchess.com"]
[Source "ChessBase"]
[SourceQuality "1"]
[TimeControl "40/5400+30:1800+30"]

1. d4 {[%emt 0:00:05]} d5 {[%emt 0:00:09]} 2. Nf3 {[%emt 0:01:43]} Nf6 {[%emt 0:00:09]} 3. e3 {[%emt 0:03:39]} e6 {[%emt 0:00:45]} 4. Bd3 {[%emt 0:03:50]} Be7 {[%emt 0:08:18]} 5. O-O {[%emt 0:01:45]} Nbd7 {[%emt 0:01:00]} 6. Nbd2 {[%emt 0:01:27]} b6 {[%emt 0:00:36]} 7. e4 {[%emt 0:02:43]} dxe4 {[%emt 0:00:57]} 8. Nxe4 {[%emt 0:00:55]} Bb7 {[%emt 0:00:37]} 9. Re1 {[%emt 0:09:11]} Nxe4 {[%emt 0:07:14]} 10. Bxe4 {[%emt 0:00:08]} Bxe4 {[%emt 0:00:04]} 11. Rxe4 {[%emt 0:00:16]} Nf6 {[%emt 0:00:03]} 12. Re1 {[%emt 0:06:51]} O-O {[%emt 0:00:54]} 13. Bf4 {[%emt 0:14:05]} c5 {[%emt 0:02:45]} 14. dxc5 {[%emt 0:10:24]} Bxc5 {[%emt 0:00:54]} 15. Qxd8 {[%emt 0:07:47]} Rfxd8 {[%emt 0:00:35]} 16. Be3 {[%emt 0:01:50]} Rac8 {[%emt 0:01:35]} 17. Bxc5 {[%emt 0:03:46]} Rxc5 18. Rad1 {[%emt 0:02:40]} Rdc8 {[%emt 0:13:58]} 19. Re2 {[%emt 0:04:10]} Nd5 {[%emt 0:05:22]} 20. c3 {[%emt 0:04:58]} b5 {[%emt 0:11:40]} 21. a3 {[%emt 0:05:15]} a5 {[%emt 0:00:39]} 22. Kf1 {[%emt 0:03:39]} h6 {[%emt 0:07:45]} 23. g3 {[%emt 0:00:40]} b4 {[%emt 0:01:32]} 24. axb4 {[%emt 0:00:43]} axb4 {[%emt 0:00:12]} 25. cxb4 {[%emt 0:01:15]} Nxb4 {[%emt 0:00:23]} 26. Red2 {[%emt 0:01:20]} Nd5 {[%emt 0:01:15]} 27. Nd4 {[%emt 0:00:53]} Rb8 {[%emt 0:01:30]} 28. Ra1 {[%emt 0:01:06]} Rc4 {[%emt 0:03:21]} 29. Ne2 {[%emt 0:00:27]} Rcb4 {[%emt 0:03:04]} 30. Ra2 {[%emt 0:00:44]} Rb3 {[%emt 0:05:56]} 31. Nd4 {[%emt 0:00:37]} R3b6 {[%emt 0:00:10]} 32. Ke2 {[%emt 0:01:15]} Nb4 {[%emt 0:01:33]} 33. Ra1 {[%emt 0:01:00]} Nd5 {[%emt 0:02:14]} 34. Rc2 {[%emt 0:00:56]} Rxb2 {[%emt 0:00:21]} 35. Rxb2 {[%emt 0:01:21]} Rxb2+ {[%emt 0:00:05]} 36. Kf3 {[%emt 0:00:18]} Nb4 {[%emt 0:02:40]} 37. Ra8+ {[%emt 0:00:14]} Kh7 {[%emt 0:00:13]} 38. Ra7 {[%emt 0:00:16]} Kg6 {[%emt 0:00:25]} 39. Rb7 {[%emt 0:00:36]} Nd3 {[%emt 0:02:09]} 40. Rxb2 {[%emt 0:03:30]} Nxb2 {[%emt 0:00:06]} 41. Ke4 {[%emt 0:30:34]} Nc4 {[%emt 0:31:07]} 42. f4 {[%emt 0:00:37]} Kf6 {[%emt 0:03:17]} 43. g4 {[%emt 0:00:00]} Nd6+ {[%emt 0:00:00]} 44. Ke3 {[%emt 0:00:00]} e5 {[%emt 0:00:00]} 45. fxe5+ {[%emt 0:00:00]} Kxe5 {[%emt 0:00:00]} 46. Nf3+ {[%emt 0:00:00]} Kd5 {[%emt 0:00:00]} 47. Nd4 {[%emt 0:00:00]} Nc4+ {[%emt 0:00:00]} 48. Kd3 {[%emt 0:00:00]} Ne5+ {[%emt 0:00:00]} 49. Kc3 {[%emt 0:00:00]} Nxg4 {[%emt 0:00:00]} 50. Nf5 {[%emt 0:00:00]} g6 {[%emt 0:00:00]} 51. Ne7+ {[%emt 0:00:00]} Ke4 {[%emt 0:00:00]} 52. Ng8 {[%emt 0:00:00]} Nxh2 {[%emt 0:00:00]} 53. Nxh6 {[%emt 0:00:00]} f5 {[%emt 0:00:00]} 54. Nf7 {[%emt 0:00:00]} f4 {[%emt 0:00:00]} 55. Kd2 {[%emt 0:00:00]} f3 {[%emt 0:00:00]} 56. Ng5+ {[%emt 0:00:00]} Kf4 {[%emt 0:00:00]} 57. Nh3+ {[%emt 0:00:00]} Kg3 {[%emt 0:00:00]} 58. Ng1 {[%emt 0:00:00]} f2 {[%emt 0:00:00]} 59. Ne2+ {[%emt 0:00:00]} Kf3 {[%emt 0:00:00]} 60. Nd4+ {[%emt 0:00:00]} Ke4 {[%emt 0:00:00]} 0-1

[Event "WSTCC-50 2024"]
[Site "Krakow"]
[Date "2024.07.02"]
[Round "1.13"]
[White "Rogowski, Jaroslaw"]
[Black "Godena, Michele"]
[Result "0-1"]
[ECO "D02"]
[WhiteElo "2149"]
[BlackElo "2426"]
[Annotator "TA"]
[PlyCount "105"]
[EventDate "2024.07.01"]
[EventType "team-tourn"]
[EventCountry "POL"]
[SourceTitle "playchess.com"]
[Source "ChessBase"]
[SourceQuality "1"]
[TimeControl "40/5400+30:1800+30"]

{[%evp 9,105,20,36,31,32,27,28,16,20,27,29,26,51,7,15,0,0,-139,-139,-131,-129,-197,-191,-201,-181,-186,-183,-247,-233,-222,-175,-318,-318,-508,-227,-241,-222,-221,-227,-227,-218,-247,-244,-315,-324,-362,-357,-410,-330,-323,-321,-329,-328,-326,-322,-346,-350,-364,-357,-391,-381,-383,-379,-431,-469,-429,-403,-422,-420,-424,-433,-455,-450,-463,-453,-457,-456,-478,-464,-635,-621,-633,-630,-581,-589,-720,-703,-949,-991,-1518,-979,-728,-663,-2847,-2710,-2448,-2352,-2024]} 1. d4 {[%emt 0:00:04]} d5 {[%emt 0:00:08]} 2. Nf3 {[%emt 0:00:12]} Bf5 {[%emt 0:03:14]} 3. c4 {[%emt 0:00:31]} e6 {[%emt 0:00:13]} 4. Nc3 {[%emt 0:01:25]} Nc6 {[%emt 0:02:46]} 5. a3 {[%emt 0:14:09]} Nf6 {[%emt 0:13:27][%cal Bg8f6,Bf6d5,Bd5c3][%mdl 32]} 6. Bg5 {[%emt 0:04:16]} Be7 {[%emt 0:01:43]} 7. e3 {[%emt 0:03:55]} O-O {[%emt 0:09:34]} 8. Bd3 {[%emt 0:06:40] Threatening Bxf5. White has an edge.} (8. Rc1 {simplifies} Rc8 9. cxd5 Nxd5 10. Bxe7 Nxc3 11. Rxc3 Nxe7 12. Be2) 8... dxc4 {[%emt 0:10:21]} 9. Bxc4 {[%emt 0:06:01]} Nd5 {[%emt 0:21:21]} 10. Bxe7 {[%emt 0:07:35]} Nxc3 {[%emt 0:03:56]} 11. Qb3 {[%emt 0:08:34]} (11. Bxd8 {simplifies} Nxd1 12. Rxd1 Rfxd8 13. Ke2) 11... Nxe7 {[%emt 0:01:19]} 12. bxc3 {[%emt 0:01:46]} Be4 {[%emt 0:03:34]} 13. Ng5 {[%emt 0:18:39]} (13. Be2 $11 {remains equal.}) 13... Bxg2 $17 {[%emt 0:05:22] Black keeps a firm grip on the game.} 14. Rg1 {[%emt 0:00:15]} Bd5 {[%emt 0:00:03]} 15. e4 {[%emt 0:00:36]} (15. Bxd5 $17 Qxd5 16. Qc2) 15... Bxc4 $19 {[%emt 0:00:13]} 16. Qxc4 {[%emt 0:00:08]} h6 {[%emt 0:11:30]} 17. Nf3 {[%emt 0:02:46]} Ng6 {[%emt 0:03:03]} 18. O-O-O {[%emt 0:06:52]} (18. Rg3 $142) 18... Qf6 {[%emt 0:00:31]} 19. Rd3 {[%emt 0:07:13]} c5 {[%emt 0:04:16]} 20. e5 {[%emt 0:03:20]} (20. Qxc5 $142 Qf4+ 21. Re3) 20... Qf4+ {[%emt 0:00:27]} 21. Kb2 {[%emt 0:00:54]} (21. Re3 $142) 21... cxd4 {[%emt 0:00:55]} (21... Nxe5 $142 22. Rxg7+ Kxg7 23. Nxe5 Qxf2+ 24. Kb3 b5 (24... Qxh2 $2 25. a4 $19) 25. Qxc5 a5 (25... Qxh2 $2 26. Nc6 $19)) 22. Qxd4 {[%emt 0:00:27] [#]} Rfd8 $1 {[%emt 0:01:05][%mdl 512]} 23. Qxf4 {[%emt 0:02:05]} Nxf4 {[%emt 0:00:01]} 24. Re3 {[%emt 0:00:01]} Rd5 {[%emt 0:02:16]} 25. Nd4 {[%emt 0:00:38] [#]} Rxe5 $3 {[%emt 0:00:20][%mdl 512]} 26. Reg3 {[%emt 0:00:24]} (26. Rxe5 Nd3+) 26... g6 {[%emt 0:00:20]} 27. Kb3 {[%emt 0:01:26]} Rc8 {[%emt 0:00:59]} 28. a4 {[%emt 0:00:35]} Ne2 {[%emt 0:00:29]} 29. Nxe2 {[%emt 0:00:49]} Rxe2 {[%emt 0:00:01][%mdl 4096] Endgame. KRR-KRR} 30. Rf3 {[%emt 0:00:11]} Rd2 {[%emt 0:00:53]} 31. Rg4 {[%emt 0:00:06]} Rc7 {[%emt 0:00:25]} 32. h4 {[%emt 0:00:10]} h5 {[%emt 0:00:09]} 33. Rgf4 {[%emt 0:00:48]} Rd5 {[%emt 0:00:27]} 34. Kb4 {[%emt 0:01:01]} a5+ {[%emt 0:01:16]} 35. Kb3 {[%emt 0:00:09]} Kf8 {[%emt 0:00:32]} 36. Rf6 {[%emt 0:01:43]} Kg7 {[%emt 0:00:12]} 37. R6f4 {[%emt 0:00:19]} Rd1 {[%emt 0:00:34]} 38. Re4 {[%emt 0:00:29]} Rb1+ {[%emt 0:00:19]} 39. Kc2 {[%emt 0:00:22]} Rb4 {[%emt 0:00:55] Black is clearly winning.} 40. Rff4 {[%emt 0:00:53]} Rxe4 {[%emt 0:00:22]} 41. Rxe4 {[%emt 0:30:03] KR-KR} Kf6 {[%emt 0:01:48]} 42. Kd3 {[%emt 0:00:00]} Rc5 {[%emt 0:10:57]} 43. c4 {[%emt 0:00:00]} g5 {[%emt 0:01:49]} 44. Kd4 {[%emt 0:00:00]} Rf5 {[%emt 0:05:37] White must now prevent ...Rf4.} 45. hxg5+ {[%emt 0:00:00]} Kxg5 {[%emt 0:00:07]} 46. Ke3 {[%emt 0:00:00] Prevents Rf4.} h4 {[%emt 0:01:14] Strongly threatening ...h3.} 47. f3 {[%emt 0:00:00]} h3 {[%emt 0:01:23] ...h2 is the strong threat.} 48. Rg4+ {[%emt 0:00:00]} Kh6 {[%emt 0:00:25]} 49. Rg8 {[%emt 0:00:00]} Kh7 {[%emt 0:01:24]} 50. Rg1 {[%emt 0:00:00]} Rh5 {[%emt 0:01:26]} 51. f4 {[%emt 0:00:00]} h2 {[%emt 0:00:20]} 52. Rh1 {[%emt 0:00:00]} Kg6 {[%emt 0:00:09]} 53. Kd4 {Weighted Error Value: White=0.52/Black=0.24 (precise) .  Mistake:       	White=5     	Black=1      Inaccurate:     	White=3     	---        OK:         	White=12    	Black=22     Best:        	---       	Black=1} 0-1